fUST/lending_fUST_20260101
["ID","MTS","AMOUNT","RATE_DAILY","PERIOD"]
[400240924,1767213034254,-500.0,0.00016438,2]
[400240925,1767213034264,-500.0,0.00016438,2]
[400240926,1767213034274,-500.0,0.00016438,2]
[400240927,1767213034283,-500.0,0.00016438,2]
[400240928,1767213034293,-500.0,0.00016438,2]
[400240929,1767213034302,-500.0,0.00016438,2]
[400240930,1767213034311,-500.0,0.00016438,2]
[400240931,1767213034321,-500.0,0.00016438,2]
[400240932,1767213034330,-500.0,0.00016438,2]
[400240933,1767213034339,-500.0,0.00016438,2]
[400240934,1767213034349,-1845.24,0.00016483,2]
[400240935,1767213034358,-924.50323448,0.00017401,2]
[400240936,1767213034368,-255.7285183,0.0001743,2]
[400240937,1767213034377,-2214.28,0.00017582,2]
[400240938,1767213034386,-171.1,0.00018281,2]
[400240939,1767213034395,-500.0,0.000183,2]
[400240940,1767213034405,-2583.33,0.0001868,2]
[400240941,1767213034415,-100000.0,0.0001899,2]
[400240942,1767213034425,-285.6188646,0.0001943,2]
[400240943,1767213034435,-2952.38,0.00019779,2]
[400240944,1767213034444,-250.56107343,0.00019966,2]
[400240945,1767213034453,-163.17,0.0002,2]
[400240946,1767213034463,-157.43,0.0002,2]
[400240947,1767213034472,-3216.38,0.0002,2]
[400240948,1767213034482,-200.91829517,0.0002,2]
[400240949,1767213034491,-83994.00649454,0.0002,2]
[400240965,1767213037710,-50000.0,0.0002,2]
[400240966,1767213037757,-2336.37,0.0002,2]
[400240967,1767213037814,-3197.18973189,0.0002,2]
[400240968,1767213038023,-497.05190456,0.0002,2]
[400240969,1767213038037,-25264.38186901,0.0002,2]
[400240970,1767213038047,-171.1,0.00020019,2]
[400240971,1767213038056,-422.11,0.000201,2]
[400240972,1767213038067,-1041.66666667,0.00020742,2]
[400240973,1767213038076,-315.5092109,0.0002143,2]
[400240974,1767213038086,-171.1,0.00021758,2]
[400240975,1767213038096,-1090.46521172,0.00021917,2]
[400240976,1767213038105,-501.28701467,0.00021917,2]
[400240977,1767213038115,-500.0,0.00021917,2]
[400240978,1767213038124,-510.00718018,0.00021917,2]
[400240979,1767213038134,-500.0,0.00021917,2]
[400240980,1767213038143,-500.0,0.00021917,2]
[400240981,1767213038152,-500.0,0.00021917,2]
[400240982,1767213038162,-500.0,0.00021917,2]
[400240983,1767213038171,-500.0,0.00021917,2]
[400240984,1767213038181,-500.0,0.00021917,2]
[400240985,1767213038190,-500.0,0.00021917,2]
[400240986,1767213038199,-1000.0,0.00021917,2]
[400240987,1767213038208,-500.0,0.00021917,2]
[400240988,1767213038218,-497.36160661,0.00021917,2]
[400240989,1767213038228,-500.0,0.00021917,2]
[400240990,1767213038237,-286.81530226,0.00021917,2]
[400240991,1767213038247,-438.32011162,0.00021917,2]
[400240992,1767213038256,-500.0,0.00021917,2]
[400240993,1767213038266,-506.61072878,0.00021917,2]
[400240994,1767213038275,-500.0,0.00021917,2]
[400240995,1767213038284,-613.72905616,0.00021917,2]
[400240996,1767213038294,-500.0,0.00021917,2]
[400240997,1767213038303,-500.0,0.00021917,2]
[400240998,1767213038312,-500.0,0.00021917,2]
[400240999,1767213038321,-500.0,0.00021917,2]
[400241000,1767213038331,-570.03107926,0.00021917,2]
[400241001,1767213038341,-384.42284736,0.00021917,2]
[400241002,1767213038351,-1000.0,0.00021917,2]
[400241003,1767213038360,-193.714378,0.00021917,2]
[400241004,1767213038369,-500.0,0.00021917,2]
[400241005,1767213038379,-438.91001104,0.00021917,2]
[400241006,1767213038388,-518.97313957,0.00021917,2]
[400241007,1767213038397,-359.62185946,0.00021917,2]
[400241008,1767213038407,-276.66865437,0.00021917,2]
[400241009,1767213038418,-500.0,0.00021917,2]
[400241010,1767213038427,-391.47361695,0.00021917,2]
[400241011,1767213038437,-500.0,0.00021917,2]
[400241012,1767213038562,-298.66749138,0.00021917,2]
[400241013,1767213038572,-521.16197729,0.00021917,2]
[400241014,1767213038582,-500.0,0.00021917,2]
[400241015,1767213038592,-465.31557181,0.00021917,2]
[400241016,1767213038602,-500.0,0.00021917,2]
[400241017,1767213038611,-500.0,0.00021917,2]
[400241018,1767213038621,-500.0,0.00021917,2]
[400241019,1767213038630,-500.0,0.00021917,2]
[400241020,1767213038640,-500.0,0.00021917,2]
[400241021,1767213038649,-574.98627618,0.00021917,2]
[400241022,1767213038658,-576.25541193,0.00021917,2]
[400241023,1767213038668,-314.94131652,0.00021917,2]
[400241024,1767213038678,-500.0,0.00021917,2]
[400241025,1767213038688,-500.0,0.00021917,2]
[400241026,1767213038698,-500.0,0.00021917,2]
[400241027,1767213038707,-500.0,0.00021917,2]
[400241028,1767213038717,-500.0,0.00021917,2]
[400241029,1767213038728,-473.14705342,0.00021917,2]
[400241030,1767213038738,-922.34,0.00021917,2]
[400241031,1767213038748,-388.1414076,0.00021917,2]
[400241032,1767213038757,-423.38771738,0.00021917,2]
[400241033,1767213038767,-357.16887499,0.00021917,2]
[400241034,1767213038777,-491.44374409,0.00021917,2]
[400241035,1767213038787,-361.12061839,0.00021917,2]
[400241036,1767213038798,-582.92938711,0.00021917,2]
[400241037,1767213038808,-368.45316547,0.00021917,2]
[400241038,1767213038818,-500.0,0.00021917,2]
[400241039,1767213038828,-381.1580659,0.00021917,2]
[400241040,1767213038839,-500.0,0.00021917,2]
[400241041,1767213038850,-500.0,0.00021917,2]
[400241042,1767213038860,-445.55316345,0.00021917,2]
[400241043,1767213038870,-275.50557982,0.00021917,2]
[400241119,1767213040962,-57.73803739,0.00021917,2]
[400241305,1767213045909,-201.87,0.00012088,2]
[400241306,1767213045917,-403.73,0.00013187,2]
[400241307,1767213045924,-605.6,0.00014286,2]
[400241308,1767213045932,-398.99785751,0.00015385,2]
[400241309,1767213045940,-408.46214249,0.00015385,2]
[400241310,1767213045947,-1009.33,0.00016484,2]
[400241311,1767213045954,-1211.19,0.00017583,2]
[400241312,1767213045961,-1413.06,0.00018682,2]
[400241313,1767213045968,-1614.93,0.00019781,2]
[400241314,1767213045976,-636.96692241,0.00019919,3]
[400241315,1767213045983,-357.0,0.0002016,2]
[400241316,1767213045990,-414.0,0.00020326,2]
[400241317,1767213045997,-1041.66666667,0.00020737,2]
[400241319,1767213046006,-1816.79,0.0002088,2]
[400241320,1767213046014,-89.62027531,0.00021917,2]
[400241321,1767213046021,-500.0,0.00021917,2]
[400241322,1767213046032,-228.15890589,0.00021917,2]
[400241323,1767213046039,-6768.61488711,0.00021917,2]
[400241336,1767213079767,171.7391148,9.713e-05,2]
[400241513,1767213641439,1786.32109944,0.00010954,2]
[400241537,1767213936087,-337.44844908,0.00011117,2]
[400241545,1767214036101,-238.55155092,0.00011117,2]
[400241546,1767214036121,-238.01633928,0.00011117,2]
[400241547,1767214036141,-492.8613416,0.00011117,2]
[400241548,1767214036159,-207.35873939,0.0001198,2]
[400241549,1767214036179,-300.0,0.00012077,2]
[400241550,1767214036199,-1188.42653141,0.00012078,2]
[400241565,1767214047076,-38287.06186407,0.00012078,2]
[400241594,1767214163109,-6470.3252378,0.00011378,2]
[400241595,1767214163135,-2663.71096245,0.00011978,2]
[400241596,1767214163157,-10524.51160452,0.00012078,2]
[400241597,1767214163179,-500.0,0.00012078,2]
[400241598,1767214163200,-33.1436776,0.00012078,2]
[400241599,1767214163237,-180.69131371,0.00012078,2]
[400241600,1767214163258,-500.0,0.00012078,2]
[400241601,1767214163278,-500.0,0.00012078,2]
[400241602,1767214163299,-318.49777874,0.00012078,2]
[400241603,1767214163321,-500.0,0.00012078,2]
[400241604,1767214163493,-500.0,0.00012078,2]
[400241605,1767214163516,-357.47937195,0.00012078,2]
[400241606,1767214163544,-500.0,0.00012078,2]
[400241607,1767214163567,-500.0,0.00012078,2]
[400241608,1767214163589,-623.50044837,0.00012078,2]
[400241609,1767214163611,-500.0,0.00012078,2]
[400241610,1767214163633,-500.0,0.00012078,2]
[400241611,1767214163654,-500.0,0.00012078,2]
[400241612,1767214163675,-500.0,0.00012078,2]
[400241613,1767214163697,-500.0,0.00012078,2]
[400241614,1767214163719,-500.0,0.00012078,2]
[400241615,1767214163741,-500.0,0.0001208,2]
[400241616,1767214163762,-500.0,0.0001208,2]
[400241617,1767214163783,-641.69238569,0.0001208,2]
[400241618,1767214163804,-500.0,0.0001208,2]
[400241619,1767214163826,-500.0,0.0001208,2]
[400241620,1767214163847,-500.0,0.0001208,2]
[400241621,1767214163868,-500.0,0.0001208,2]
[400241622,1767214163889,-500.0,0.0001208,2]
[400241623,1767214163911,-500.0,0.0001208,2]
[400241624,1767214163931,-500.0,0.0001208,2]
[400241625,1767214163953,-500.0,0.0001208,2]
[400241626,1767214163975,-300.0,0.0001208,2]
[400241627,1767214163999,-500.0,0.0001208,2]
[400241628,1767214164022,-500.0,0.0001208,2]
[400241629,1767214164045,-267.9340494,0.0001208,2]
[400241630,1767214164068,-500.0,0.0001208,2]
[400241631,1767214164089,-1657.25797573,0.00012229,2]
[400241632,1767214164110,-173.09,0.00012329,2]
[400241633,1767214164130,-865.48,0.00012329,2]
[400241634,1767214164150,-280.85928035,0.00013117,2]
[400241635,1767214164171,-500.0,0.00013273,2]
[400241636,1767214164192,-300.0,0.00013673,2]
[400241637,1767214164216,-2942.9097946,0.00013699,2]
[400241638,1767214164237,-1326.657253,0.00013699,2]
[400241639,1767214164256,-15490.5579877,0.00013699,2]
[400241640,1767214164277,-500.0,0.00013699,2]
[400241641,1767214164296,-500.0,0.00013699,2]
[400241642,1767214164315,-500.0,0.00013699,2]
[400241643,1767214164334,-264.04332823,0.00013699,2]
[400241644,1767214164358,-1000.0,0.00013821,2]
[400241645,1767214164385,-360.96,0.00013858,2]
[400241646,1767214164408,-600.0,0.00014221,2]
[400241647,1767214164430,-1000.0,0.00014247,2]
[400241648,1767214164450,-1000.0,0.00014247,2]
[400241650,1767214164472,-182.12203946,0.00014795,2]
[400241651,1767214164492,-2997.49652757,0.00014882,2]
[400241704,1767214231718,-709.4838733,0.00014882,2]
[400241705,1767214231739,-629.30076944,0.00014882,2]
[400241706,1767214232063,-500.0,0.00014881,2]
[400241707,1767214232072,-500.0,0.00014881,2]
[400241708,1767214232082,-3254.1179849,0.00014882,2]
[400241709,1767214232093,-917.30566123,0.00014882,2]
[400241710,1767214232105,-1170.29225021,0.00014882,2]
[400241711,1767214232133,-237.55383458,0.00014881,2]
[400241712,1767214232143,-8503.24616541,0.00014882,2]
[400241737,1767214237822,-356.36,0.00013873,2]
[400241738,1767214237831,-500.0,0.00014881,2]
[400241739,1767214237841,-500.0,0.00014881,2]
[400241740,1767214237850,-500.0,0.00014881,2]
[400241741,1767214237859,-500.0,0.00014881,2]
[400241742,1767214237869,-500.0,0.00014881,2]
[400241743,1767214237878,-500.0,0.00014881,2]
[400241744,1767214237887,-178.7087858,0.00014881,2]
[400241745,1767214237898,-321.2912142,0.00014881,2]
[400241746,1767214237907,-180.38893871,0.00014881,2]
[400241747,1767214237916,-500.0,0.00014881,2]
[400241748,1767214237926,-359.18466998,0.00014881,2]
[400241749,1767214237935,-500.0,0.00014881,2]
[400241750,1767214237944,-1600.72434184,0.00014882,2]
[400241751,1767214237956,-80218.0324261,0.00014882,2]
[400241752,1767214237965,-1657.25797569,0.00014897,2]
[400241753,1767214237974,-323.70222143,0.00015117,2]
[400241754,1767214237983,-712.73,0.00015134,2]
[400241755,1767214237992,-886.5532794,0.00015652,2]
[400241756,1767214238002,-256.55803868,0.00015723,2]
[400241757,1767214238012,-1069.09,0.00016395,2]
[400241758,1767214238021,-500.0,0.00016438,2]
[400241759,1767214238030,-500.0,0.00016438,2]
[400241760,1767214238040,-500.0,0.00016438,2]
[400241761,1767214238049,-180.19146422,0.00016438,2]
[400241762,1767214238059,-500.0,0.00016438,2]
[400241763,1767214238068,-30740.91728425,0.00016438,2]
[400241764,1767214238077,-999.0,0.0001677,2]
[400241765,1767214238087,-366.5451625,0.00017117,2]
[400241766,1767214238097,-886.5532794,0.00017476,2]
[400241767,1767214238106,-1657.25797569,0.00017565,2]
[400241768,1767214238116,-1425.45,0.00017656,2]
[400241769,1767214238126,-1041.66666667,0.00018181,2]
[400241770,1767214238135,-256.55803868,0.00018251,2]
[400241771,1767214238145,-1781.82,0.00018917,2]
[400241772,1767214238154,-409.38810357,0.00019117,2]
[400241773,1767214238164,-886.5532794,0.000193,2]
[400241774,1767214238174,-10399.62,0.000197,2]
[400241775,1767214238183,-1149.94,0.000197,2]
[400241776,1767214238197,-256.9,0.00020129,2]
[400241777,1767214238207,-2138.18,0.00020179,2]
[400241778,1767214238216,-1657.25797569,0.00020232,2]
[400241779,1767214238226,-1326.657253,0.00020548,2]
[400241780,1767214238236,-2243.2919442,0.00020635,2]
[400241781,1767214238246,-160.35,0.00020739,10]
[400241782,1767214238255,-1043.2817411,0.00020749,2]
[400241783,1767214238265,-68594.6628047,0.00020749,2]
[400241784,1767214238274,-555.1571917,0.00020749,2]
[400241785,1767214238283,-256.55803868,0.00020779,2]
[400241786,1767214238293,-452.23104464,0.00021117,2]
[400241787,1767214238302,-886.5532794,0.00021125,2]
[400241788,1767214238312,-2494.55,0.0002144,2]
[400241789,1767214238321,-2242.59364884,0.00021572,2]
[400241790,1767214238331,-2242.59364885,0.00021684,2]
[400241791,1767214238340,-256.9,0.00021857,2]
[400241792,1767214238349,-269.0,0.00021886,2]
[400241793,1767214238359,-18135.6373024,0.00021917,2]
[400241794,1767214238369,-5018.42949476,0.00021917,2]
[400241795,1767214238379,-1000.0,0.00021917,2]
[400241796,1767214238389,-500.0,0.00021917,2]
[400241797,1767214238398,-500.0,0.00021917,2]
[400241798,1767214238413,-500.0,0.00021917,2]
[400241799,1767214238422,-500.0,0.00021917,2]
[400241800,1767214238432,-601.16110077,0.00021917,2]
[400241801,1767214238443,-1082.08998138,0.00021917,2]
[400241802,1767214238453,-1000.0,0.00021917,2]
[400241803,1767214238462,-500.0,0.00021917,2]
[400241804,1767214238471,-500.0,0.00021917,2]
[400241805,1767214238482,-500.0,0.00021917,2]
[400241806,1767214238492,-500.0,0.00021917,2]
[400241807,1767214238502,-500.0,0.00021917,2]
[400241808,1767214238512,-500.0,0.00021917,2]
[400241809,1767214238523,-329.63856931,0.00021917,2]
[400241810,1767214238533,-593.34942475,0.00021917,2]
[400241811,1767214238544,-1054.84342179,0.00021917,2]
[400241812,1767214238554,-500.0,0.00021917,2]
[400241813,1767214238564,-500.0,0.00021917,2]
[400241814,1767214238574,-987.44,0.00021917,2]
[400241815,1767214238584,-500.0,0.00021917,2]
[400241816,1767214238594,-1195.57,0.00021917,2]
[400241817,1767214238603,-500.0,0.00021917,2]
[400241818,1767214238614,-500.0,0.00021917,2]
[400241819,1767214238623,-203.72,0.00021917,2]
[400241820,1767214238632,-197.8086957,0.00021917,2]
[400241821,1767214238643,-500.0,0.00021917,2]
[400241822,1767214238653,-500.0,0.00021917,2]
[400241823,1767214238662,-500.0,0.00021917,2]
[400241824,1767214238672,-500.0,0.00021917,2]
[400241825,1767214238681,-500.0,0.00021917,2]
[400241826,1767214238691,-500.0,0.00021917,2]
[400241827,1767214238700,-1565.45,0.00021917,2]
[400241828,1767214238710,-500.0,0.00021917,2]
[400241829,1767214238719,-5529.69,0.00021917,2]
[400241830,1767214238729,-539.25,0.00021917,2]
[400241831,1767214238740,-500.0,0.00021917,2]
[400241832,1767214238750,-500.0,0.00021917,2]
[400241833,1767214238759,-188.36476689,0.00021917,2]
[400241834,1767214238768,-500.0,0.00021917,2]
[400241835,1767214238777,-500.0,0.00021917,2]
[400241836,1767214238786,-500.0,0.00021917,2]
[400241837,1767214238795,-500.0,0.00021917,2]
[400241838,1767214238805,-7615.18,0.00021917,2]
[400241839,1767214238815,-582.6,0.00021917,2]
[400241840,1767214238824,-1669.07,0.00021917,2]
[400241841,1767214238834,-725.95,0.00021917,2]
[400241842,1767214238844,-500.0,0.00021917,2]
[400241843,1767214238853,-500.0,0.00021917,2]
[400241844,1767214238863,-500.0,0.00021917,2]
[400241845,1767214238872,-500.0,0.00021917,2]
[400241846,1767214238882,-500.0,0.00021917,2]
[400241847,1767214238892,-609.83,0.00021917,2]
[400241848,1767214238902,-500.0,0.00021917,2]
[400241849,1767214238912,-708.82,0.00021917,2]
[400241850,1767214238921,-664.97,0.00021917,2]
[400241851,1767214238930,-500.0,0.00021917,2]
[400241852,1767214238940,-500.0,0.00021917,2]
[400241853,1767214238950,-500.0,0.00021917,2]
[400241854,1767214238960,-167.37,0.00022,2]
[400241855,1767214238970,-176.03,0.00022,7]
[400241856,1767214238979,-335.0,0.00022101,2]
[400241857,1767214238989,-5018.42949476,0.00022191,2]
[400241858,1767214238999,-1000.0,0.00022191,2]
[400241859,1767214239008,-500.0,0.00022191,2]
[400241860,1767214239018,-500.0,0.00022191,2]
[400241861,1767214239027,-500.0,0.00022191,2]
[400241862,1767214239037,-1000.0,0.00022191,2]
[400241863,1767214239046,-500.0,0.00022191,2]
[400241864,1767214239056,-500.0,0.00022191,2]
[400241865,1767214239066,-208.25775335,0.00022191,2]
[400241866,1767214239076,-987.44,0.00022191,2]
[400241867,1767214239087,-500.0,0.00022191,2]
[400241868,1767214239097,-1195.57,0.00022191,2]
[400241870,1767214239106,-418.56912658,0.00022191,2]
[400241871,1767214239116,-500.0,0.00022191,2]
[400241872,1767214239126,-500.0,0.00022191,2]
[400241873,1767214239136,-500.0,0.00022191,2]
[400241874,1767214239145,-500.0,0.00022191,2]
[400241875,1767214239155,-1565.45,0.00022191,2]
[400241876,1767214239164,-584.07655682,0.00022191,2]
[400241877,1767214239173,-5529.69,0.00022191,2]
[400241878,1767214239183,-539.25,0.00022191,2]
[400241879,1767214239194,-507.77725803,0.00022191,2]
[400241880,1767214239203,-500.0,0.00022191,2]
[400241881,1767214239213,-507.57910205,0.00022191,2]
[400241882,1767214239223,-500.0,0.00022191,2]
[400241883,1767214239233,-500.0,0.00022191,2]
[400241884,1767214239243,-581.30200046,0.00022191,2]
[400241885,1767214239252,-7615.18,0.00022191,2]
[400241886,1767214239262,-582.6,0.00022191,2]
[400241887,1767214239271,-1669.07,0.00022191,2]
[400241888,1767214239281,-725.95,0.00022191,2]
[400241889,1767214239290,-500.0,0.00022191,2]
[400241890,1767214239300,-500.0,0.00022191,2]
[400241891,1767214239309,-303.58132639,0.00022191,2]
[400241892,1767214239319,-500.0,0.00022191,2]
[400241893,1767214239329,-500.0,0.00022191,2]
[400241894,1767214239339,-609.83,0.00022191,2]
[400241895,1767214239349,-500.0,0.00022191,2]
[400241896,1767214239358,-708.82,0.00022191,2]
[400241897,1767214239368,-664.97,0.00022191,2]
[400241898,1767214239377,-500.0,0.00022191,2]
[400241899,1767214239386,-500.0,0.00022191,2]
[400241900,1767214239396,-500.0,0.00022191,2]
[400241902,1767214239513,-391.0,0.00022315,2]
[400241903,1767214239523,-5018.42949476,0.00022465,2]
[400241904,1767214239532,-500.0,0.00022465,2]
[400241905,1767214239542,-500.0,0.00022465,2]
[400241906,1767214239551,-500.0,0.00022465,2]
[400241907,1767214239561,-1000.0,0.00022465,2]
[400241908,1767214239570,-500.0,0.00022465,2]
[400241909,1767214239579,-500.0,0.00022465,2]
[400241911,1767214239588,-987.44,0.00022465,2]
[400241912,1767214239598,-500.0,0.00022465,2]
[400241913,1767214239607,-1195.57,0.00022465,2]
[400241914,1767214239616,-500.0,0.00022465,2]
[400241915,1767214239625,-1565.45,0.00022465,2]
[400241917,1767214239635,-5529.69,0.00022465,2]
[400241918,1767214239644,-539.25,0.00022465,2]
[400241919,1767214239657,-500.0,0.00022465,2]
[400241920,1767214239666,-500.0,0.00022465,2]
[400241921,1767214239675,-7615.18,0.00022465,2]
[400241922,1767214239684,-582.6,0.00022465,2]
[400241923,1767214239693,-1669.07,0.00022465,2]
[400241924,1767214239702,-725.95,0.00022465,2]
[400241925,1767214239712,-500.0,0.00022465,2]
[400241926,1767214239721,-610.22451559,0.00022465,2]
[400241927,1767214239730,-500.0,0.00022465,2]
[400241928,1767214239739,-500.0,0.00022465,2]
[400241929,1767214239749,-609.83,0.00022465,2]
[400241930,1767214239758,-500.0,0.00022465,2]
[400241931,1767214239767,-708.82,0.00022465,2]
[400241932,1767214239777,-664.97,0.00022465,2]
[400241933,1767214239786,-500.0,0.00022465,2]
[400241934,1767214239795,-500.0,0.00022465,2]
[400241935,1767214239804,-500.1154927,0.00022465,2]
[400241936,1767214239813,-1923.71552245,0.00022516,2]
[400241937,1767214239823,-193.0,0.00022521,7]
[400241938,1767214239832,-2850.91,0.00022701,2]
[400241939,1767214239842,-5018.42949476,0.00022739,2]
[400241940,1767214239851,-500.0,0.00022739,2]
[400241941,1767214239860,-500.0,0.00022739,2]
[400241942,1767214239869,-999.99999997,0.00022739,2]
[400241943,1767214239879,-500.0,0.00022739,2]
[400241944,1767214239889,-500.0,0.00022739,2]
[400241945,1767214239898,-987.44,0.00022739,2]
[400241946,1767214239907,-500.0,0.00022739,2]
[400241947,1767214239916,-1195.57,0.00022739,2]
[400241948,1767214239926,-500.0,0.00022739,2]
[400241949,1767214239935,-1565.45,0.00022739,2]
[400241950,1767214239944,-5529.69,0.00022739,2]
[400241951,1767214239954,-539.25,0.00022739,2]
[400241952,1767214239963,-500.0,0.00022739,2]
[400241953,1767214239972,-500.0,0.00022739,2]
[400241954,1767214239982,-7615.18,0.00022739,2]
[400241955,1767214239991,-582.6,0.00022739,2]
[400241956,1767214240000,-1669.07,0.00022739,2]
[400241957,1767214240009,-725.95,0.00022739,2]
[400241958,1767214240019,-500.0,0.00022739,2]
[400241959,1767214240028,-500.0,0.00022739,2]
[400241960,1767214240038,-609.83,0.00022739,2]
[400241961,1767214240047,-708.82,0.00022739,2]
[400241962,1767214240056,-664.97,0.00022739,2]
[400241964,1767214240066,-22762.3360165,0.0002277,2]
[400241965,1767214240075,-778.66254772,0.0002287,2]
[400241966,1767214240084,-1657.25797569,0.000229,2]
[400241967,1767214240094,-3147.76375777,0.000229,2]
[400241968,1767214240104,-149999.999999,0.00023,2]
[400241969,1767214240113,-600000.0,0.00023,30]
[400241970,1767214240122,-151.0,0.00023,2]
[400241971,1767214240132,-151.0,0.00023,2]
[400241972,1767214240141,-151.0,0.00023,2]
[400241973,1767214240150,-151.0,0.00023,2]
[400241974,1767214240160,-151.0,0.00023,2]
[400241976,1767214240169,-151.0,0.00023,2]
[400241978,1767214240179,-151.0,0.00023,2]
[400241979,1767214240188,-151.0,0.00023,2]
[400241981,1767214240197,-161.294785,0.00023,2]
[400241983,1767214240206,-161.294785,0.00023,2]
[400241985,1767214240215,-161.294785,0.00023,2]
[400241987,1767214240225,-161.294785,0.00023,2]
[400241989,1767214240234,-579.465896,0.00023,2]
[400241991,1767214240243,-579.465896,0.00023,2]
[400241993,1767214240252,-579.465896,0.00023,2]
[400241995,1767214240262,-579.465896,0.00023,2]
[400241997,1767214240271,-151.0,0.00023,2]
[400241999,1767214240280,-612.575308,0.00023,2]
[400242001,1767214240289,-612.575308,0.00023,2]
[400242003,1767214240298,-612.575308,0.00023,2]
[400242004,1767214240307,-612.575308,0.00023,2]
[400242006,1767214240317,-151.0,0.00023,2]
[400242008,1767214240326,-3003.02820967,0.00023013,2]
[400242010,1767214240335,-500.0,0.00023013,2]
[400242012,1767214240344,-500.0,0.00023013,2]
[400242014,1767214240354,-500.0,0.00023013,2]
[400242016,1767214240364,-500.0,0.00023013,2]
[400242019,1767214240373,-987.44,0.00023013,2]
[400242021,1767214240384,-500.0,0.00023013,2]
[400242022,1767214240393,-1195.57,0.00023013,2]
[400242024,1767214240405,-500.0,0.00023013,2]
[400242026,1767214240415,-1565.45,0.00023013,2]
[400242029,1767214240424,-5529.69,0.00023013,2]
[400242030,1767214240433,-539.25,0.00023013,2]
[400242032,1767214240443,-500.0,0.00023013,2]
[400242034,1767214240452,-500.0,0.00023013,2]
[400242036,1767214240461,-7615.18,0.00023013,2]
[400242038,1767214240470,-582.6,0.00023013,2]
[400242040,1767214240481,-1669.07,0.00023013,2]
[400242042,1767214240490,-725.95,0.00023013,2]
[400242044,1767214240499,-500.0,0.00023013,2]
[400242046,1767214240508,-500.0,0.00023013,2]
[400242048,1767214240518,-609.83,0.00023013,2]
[400242050,1767214240527,-708.82,0.00023013,2]
[400242052,1767214240537,-664.97,0.00023013,2]
[400242053,1767214240546,-2243.2919442,0.0002304,2]
[400242054,1767214240556,-495.07398571,0.00023117,2]
[400242055,1767214240565,-1043.2817411,0.00023159,2]
[400242056,1767214240575,-555.1571917,0.00023159,2]
[400242057,1767214240585,-500.0,0.00023287,2]
[400242058,1767214240594,-500.0,0.00023287,2]
[400242059,1767214240604,-500.0,0.00023287,2]
[400242060,1767214240613,-500.0,0.00023287,2]
[400242061,1767214240623,-987.44,0.00023287,2]
[400242062,1767214240633,-500.0,0.00023287,2]
[400242063,1767214240642,-1195.57,0.00023287,2]
[400242064,1767214240651,-500.0,0.00023287,2]
[400242065,1767214240660,-1565.45,0.00023287,2]
[400242066,1767214240670,-5529.69,0.00023287,2]
[400242067,1767214240680,-539.25,0.00023287,2]
[400242068,1767214240689,-500.0,0.00023287,2]
[400242069,1767214240699,-500.0,0.00023287,2]
[400242070,1767214240708,-7615.18,0.00023287,2]
[400242071,1767214240718,-582.6,0.00023287,2]
[400242072,1767214240727,-1669.07,0.00023287,2]
[400242073,1767214240737,-725.95,0.00023287,2]
[400242074,1767214240747,-500.0,0.00023287,2]
[400242075,1767214240756,-500.0,0.00023287,2]
[400242076,1767214240766,-609.83,0.00023287,2]
[400242077,1767214240776,-708.82,0.00023287,2]
[400242078,1767214240786,-664.97,0.00023287,2]
[400242079,1767214240795,-256.55803868,0.00023307,2]